[Event "Titled Tuesday Blitz July 18 Early 2023"]
[White "Zhang, Eric"]
[Black "Fajdetic, Hrvoje"]
[WhiteFideId "30907667"]
[BlackFideId "14501945"]
[WhiteElo "2553"]
[BlackElo "2367"]
[Result "1-0"]
[Round "4"]
[TimeControl "180+2"]
[Date "2023.07.18"]
[WhiteClock "0:01:01"]
[BlackClock "0:00:02"]
[Board "130"]

1. d4 {[%clk 0:03:00]}  d5 {[%clk 0:02:57]} 2. c4 {[%clk 0:03:01]}  e6 {[%clk 0:02:57]} 3. Nc3 {[%clk 0:03:01]}  f5 {[%clk 0:02:57]} 4. Nf3 {[%clk 0:02:58]}  c6 {[%clk 0:02:57]} 5. Bg5 {[%clk 0:02:57]}  Nf6 {[%clk 0:02:58]} 6. e3 {[%clk 0:02:57]}  Bd6 {[%clk 0:02:57]} 7. cxd5 {[%clk 0:02:57]}  exd5 {[%clk 0:02:57]} 8. Ne5 {[%clk 0:02:57]}  O-O {[%clk 0:02:57]} 9. Be2 {[%clk 0:02:56]}  Nbd7 {[%clk 0:02:55]} 10. f4 {[%clk 0:02:56]}  Qe8 {[%clk 0:02:55]} 11. Bxf6 {[%clk 0:02:54]}  Nxf6 {[%clk 0:02:54]} 12. O-O {[%clk 0:02:53]}  Ne4 {[%clk 0:02:55]} 13. Qe1 {[%clk 0:02:47]}  Bxe5 {[%clk 0:02:37]} 14. fxe5 {[%clk 0:02:44]}  Qe7 {[%clk 0:02:31]} 15. Nxe4 {[%clk 0:02:34]}  fxe4 {[%clk 0:02:32]} 16. Qg3 {[%clk 0:02:34]}  Be6 {[%clk 0:02:30]} 17. a3 {[%clk 0:02:27]}  Rxf1+ {[%clk 0:02:30]} 18. Rxf1 {[%clk 0:02:28]}  Rf8 {[%clk 0:02:29]} 19. Rxf8+ {[%clk 0:02:20]}  Qxf8 {[%clk 0:02:29]} 20. Bg4 {[%clk 0:02:19]}  Qe7 {[%clk 0:02:24]} 21. Kf2 {[%clk 0:02:14]}  b6 {[%clk 0:02:10]} 22. Qh3 {[%clk 0:02:04]}  Bf7 {[%clk 0:01:33]} 23. Bd7 {[%clk 0:01:59]}  c5 {[%clk 0:01:31]} 24. e6 {[%clk 0:01:55]}  Bg6 {[%clk 0:01:26]} 25. Qg3 {[%clk 0:01:37]}  cxd4 {[%clk 0:01:02]} 26. exd4 {[%clk 0:01:35]}  Qf6+ {[%clk 0:00:16]} 27. Ke3 {[%clk 0:01:34]}  h6 {[%clk 0:00:16]} 28. Qf4 {[%clk 0:01:12]}  Qxf4+ {[%clk 0:00:15]} 29. Kxf4 {[%clk 0:01:13]}  Kf8 {[%clk 0:00:16]} 30. Bb5 {[%clk 0:01:07]}  Ke7 {[%clk 0:00:14]} 31. Ke5 {[%clk 0:01:08]}  e3 {[%clk 0:00:12]} 32. Be2 {[%clk 0:01:06]}  Be8 {[%clk 0:00:06]} 33. Kxd5 {[%clk 0:01:04]}  Ba4 {[%clk 0:00:06]} 34. Ke5 {[%clk 0:01:03]}  Bb3 {[%clk 0:00:06]} 35. d5 {[%clk 0:01:04]}  Ba2 {[%clk 0:00:05]} 36. d6+ {[%clk 0:01:04]}  Kd8 {[%clk 0:00:02]} 37. e7+ {[%clk 0:01:01]} 1-0


[Site "https://www.chess.com"]

[Event "Titled Tuesday Blitz July 18 Early 2023"]
[White "Mamedov, Edgar"]
[Black "K2JW"]
[WhiteFideId "13739980"]
[WhiteElo "2550"]
[BlackElo "2365"]
[Result "1-0"]
[Round "4"]
[TimeControl "180+2"]
[Date "2023.07.18"]
[WhiteClock "0:00:30"]
[BlackClock "0:00:01"]
[Board "131"]

1. d4 {[%clk 0:03:00]}  c6 {[%clk 0:03:00]} 2. c4 {[%clk 0:02:58]}  d5 {[%clk 0:03:01]} 3. cxd5 {[%clk 0:02:58]}  cxd5 {[%clk 0:03:01]} 4. Nc3 {[%clk 0:02:59]}  Nf6 {[%clk 0:03:01]} 5. Bg5 {[%clk 0:02:57]}  Nc6 {[%clk 0:02:56]} 6. Bxf6 {[%clk 0:02:56]}  exf6 {[%clk 0:02:56]} 7. e3 {[%clk 0:02:55]}  g6 {[%clk 0:02:36]} 8. g3 {[%clk 0:02:54]}  Be6 {[%clk 0:02:31]} 9. Bg2 {[%clk 0:02:54]}  Qd7 {[%clk 0:02:25]} 10. Nge2 {[%clk 0:02:52]}  Bb4 {[%clk 0:02:13]} 11. O-O {[%clk 0:02:51]}  h5 {[%clk 0:02:12]} 12. h4 {[%clk 0:02:47]}  g5 {[%clk 0:02:04]} 13. Qb3 {[%clk 0:02:46]}  O-O-O {[%clk 0:01:59]} 14. Rac1 {[%clk 0:02:40]}  gxh4 {[%clk 0:01:53]} 15. gxh4 {[%clk 0:02:38]}  Rhg8 {[%clk 0:01:49]} 16. Ng3 {[%clk 0:02:02]}  Bd6 {[%clk 0:01:25]} 17. Nb5 {[%clk 0:01:54]}  Bb8 {[%clk 0:00:48]} 18. Rc5 {[%clk 0:01:24]}  Bh3 {[%clk 0:00:20]} 19. Rxd5 {[%clk 0:01:14]}  Qg4 {[%clk 0:00:20]} 20. Rxd8+ {[%clk 0:01:11]}  Rxd8 {[%clk 0:00:19]} 21. Rc1 {[%clk 0:01:07]}  Bxg2 {[%clk 0:00:08]} 22. Kxg2 {[%clk 0:01:05]}  Bxg3 {[%clk 0:00:08]} 23. Nxa7+ {[%clk 0:00:58]}  Kc7 {[%clk 0:00:09]} 24. fxg3 {[%clk 0:00:56]}  Rg8 {[%clk 0:00:08]} 25. e4 {[%clk 0:00:51]}  Qxe4+ {[%clk 0:00:06]} 26. Kh2 {[%clk 0:00:48]}  Qe2+ {[%clk 0:00:05]} 27. Kg1 {[%clk 0:00:47]}  Qg4 {[%clk 0:00:04]} 28. d5 {[%clk 0:00:44]}  Qd4+ {[%clk 0:00:03]} 29. Kf1 {[%clk 0:00:39]}  Qxa7 {[%clk 0:00:02]} 30. dxc6 {[%clk 0:00:37]}  Qa6+ {[%clk 0:00:03]} 31. Kf2 {[%clk 0:00:33]}  Qa7+ {[%clk 0:00:03]} 32. Kg2 {[%clk 0:00:30]}  Qa6 {[%clk 0:00:01]} 1-0


[Site "https://www.chess.com"]

[Event "Titled Tuesday Blitz July 18 Early 2023"]
[White "Sreyas Payyappat"]
[Black "Senft, Sean"]
[WhiteFideId "46674969"]
[BlackFideId "2044960"]
[WhiteElo "2525"]
[BlackElo "2358"]
[Result "0-1"]
[Round "4"]
[TimeControl "180+2"]
[Date "2023.07.18"]
[WhiteClock "0:00:56"]
[BlackClock "0:00:46"]
[Board "133"]

1. e4 {[%clk 0:03:00]}  c5 {[%clk 0:02:59]} 2. Nf3 {[%clk 0:02:54]}  d6 {[%clk 0:03:00]} 3. d4 {[%clk 0:02:53]}  cxd4 {[%clk 0:03:01]} 4. Nxd4 {[%clk 0:02:53]}  Nf6 {[%clk 0:03:01]} 5. Nc3 {[%clk 0:02:53]}  a6 {[%clk 0:03:02]} 6. h4 {[%clk 0:02:52]}  e5 {[%clk 0:03:00]} 7. Nb3 {[%clk 0:02:52]}  Be6 {[%clk 0:03:00]} 8. f4 {[%clk 0:02:49]}  exf4 {[%clk 0:02:48]} 9. Bxf4 {[%clk 0:02:50]}  Be7 {[%clk 0:02:48]} 10. Qd2 {[%clk 0:02:46]}  Nc6 {[%clk 0:02:48]} 11. O-O-O {[%clk 0:02:45]}  Ne5 {[%clk 0:02:49]} 12. Be2 {[%clk 0:02:42]}  O-O {[%clk 0:02:48]} 13. Qe3 {[%clk 0:02:41]}  Rc8 {[%clk 0:02:43]} 14. Rhg1 {[%clk 0:02:37]}  Qc7 {[%clk 0:02:40]} 15. g4 {[%clk 0:02:29]}  b5 {[%clk 0:02:30]} 16. Bxe5 {[%clk 0:02:15]}  dxe5 {[%clk 0:02:28]} 17. g5 {[%clk 0:02:15]}  Nd7 {[%clk 0:02:23]} 18. Rd2 {[%clk 0:02:13]}  Nc5 {[%clk 0:02:16]} 19. Qg3 {[%clk 0:02:02]}  b4 {[%clk 0:02:07]} 20. Nd5 {[%clk 0:01:48]}  Bxd5 {[%clk 0:02:04]} 21. Rxd5 {[%clk 0:01:49]}  Nxe4 {[%clk 0:02:00]} 22. Qd3 {[%clk 0:01:47]}  Nc5 {[%clk 0:01:44]} 23. Nxc5 {[%clk 0:01:33]}  Bxc5 {[%clk 0:01:45]} 24. Rf1 {[%clk 0:01:33]}  e4 {[%clk 0:01:39]} 25. Qxe4 {[%clk 0:01:32]}  Rfe8 {[%clk 0:01:34]} 26. Qd3 {[%clk 0:01:31]}  Re3 {[%clk 0:01:30]} 27. Qd1 {[%clk 0:01:28]}  Rce8 {[%clk 0:01:27]} 28. Bc4 {[%clk 0:01:26]}  R3e7 {[%clk 0:01:05]} 29. h5 {[%clk 0:01:15]}  Be3+ {[%clk 0:01:04]} 30. Kb1 {[%clk 0:01:14]}  Qxc4 {[%clk 0:01:04]} 31. g6 {[%clk 0:01:13]}  hxg6 {[%clk 0:00:53]} 32. hxg6 {[%clk 0:01:14]}  fxg6 {[%clk 0:00:54]} 33. Rh1 {[%clk 0:01:12]}  Bh6 {[%clk 0:00:53]} 34. b3 {[%clk 0:01:09]}  Qc3 {[%clk 0:00:50]} 35. Rd8 {[%clk 0:01:04]}  Kh7 {[%clk 0:00:46]} 36. Rxe8 {[%clk 0:00:56]}  Rxe8 {[%clk 0:00:46]} 0-1


[Site "https://www.chess.com"]

[Event "Titled Tuesday Blitz July 18 Early 2023"]
[White "ArtemDyachuk"]
[Black "Alahakoon, Isuru"]
[BlackFideId "9900993"]
[WhiteElo "2516"]
[BlackElo "2353"]
[Result "0-1"]
[Round "4"]
[TimeControl "180+2"]
[Date "2023.07.18"]
[WhiteClock "0:00:01"]
[BlackClock "0:00:29"]
[Board "134"]

1. e4 {[%clk 0:03:00]}  d5 {[%clk 0:02:57]} 2. exd5 {[%clk 0:03:00]}  Qxd5 {[%clk 0:02:56]} 3. Nc3 {[%clk 0:03:00]}  Qa5 {[%clk 0:02:56]} 4. d4 {[%clk 0:02:57]}  Nf6 {[%clk 0:02:55]} 5. Nf3 {[%clk 0:02:57]}  Bg4 {[%clk 0:02:54]} 6. Be2 {[%clk 0:02:53]}  Nc6 {[%clk 0:02:54]} 7. Bd2 {[%clk 0:02:36]}  O-O-O {[%clk 0:02:53]} 8. Nb5 {[%clk 0:02:12]}  Qb6 {[%clk 0:02:44]} 9. c3 {[%clk 0:01:33]}  Bxf3 {[%clk 0:02:41]} 10. gxf3 {[%clk 0:01:32]}  e5 {[%clk 0:02:41]} 11. Be3 {[%clk 0:00:52]}  a6 {[%clk 0:02:31]} 12. d5 {[%clk 0:00:49]}  Bc5 {[%clk 0:02:30]} 13. Bxc5 {[%clk 0:00:20]}  Qxc5 {[%clk 0:02:31]} 14. Na3 {[%clk 0:00:21]}  Nxd5 {[%clk 0:02:30]} 15. Qc2 {[%clk 0:00:20]}  Nf4 {[%clk 0:02:18]} 16. Nc4 {[%clk 0:00:18]}  Rd7 {[%clk 0:02:05]} 17. b4 {[%clk 0:00:13]}  Qe7 {[%clk 0:01:36]} 18. a4 {[%clk 0:00:12]}  Rhd8 {[%clk 0:00:56]} 19. b5 {[%clk 0:00:12]}  Na5 {[%clk 0:00:56]} 20. bxa6 {[%clk 0:00:09]}  Nxc4 {[%clk 0:00:53]} 21. Bxc4 {[%clk 0:00:07]}  Rd2 {[%clk 0:00:53]} 22. Qe4 {[%clk 0:00:03]}  c6 {[%clk 0:00:37]} 23. a7 {[%clk 0:00:03]}  Kc7 {[%clk 0:00:35]} 24. a8=Q {[%clk 0:00:03]}  Qc5 {[%clk 0:00:29]} 25. Qxd8+ {[%clk 0:00:02]}  Kxd8 {[%clk 0:00:30]} 26. Rd1 {[%clk 0:00:01]}  Qxf2# {[%clk 0:00:29]} 0-1


[Site "https://www.chess.com"]

[Event "Titled Tuesday Blitz July 18 Early 2023"]
[White "Sovetbekova, Nurai"]
[Black "Yeritsyan, Hayk"]
[WhiteFideId "13801910"]
[BlackFideId "13307320"]
[WhiteElo "2352"]
[BlackElo "2515"]
[Result "1-0"]
[Round "4"]
[TimeControl "180+2"]
[Date "2023.07.18"]
[WhiteClock "0:00:55"]
[BlackClock "0:00:15"]
[Board "135"]

1. d4 {[%clk 0:03:00]}  d5 {[%clk 0:02:33]} 2. c4 {[%clk 0:03:00]}  e6 {[%clk 0:02:33]} 3. Nc3 {[%clk 0:03:00]}  dxc4 {[%clk 0:02:33]} 4. e4 {[%clk 0:02:58]}  a6 {[%clk 0:02:33]} 5. a4 {[%clk 0:02:57]}  Nf6 {[%clk 0:02:32]} 6. Bxc4 {[%clk 0:02:57]}  Nc6 {[%clk 0:02:32]} 7. Nf3 {[%clk 0:02:57]}  Na5 {[%clk 0:02:31]} 8. Bd3 {[%clk 0:02:54]}  c5 {[%clk 0:02:31]} 9. dxc5 {[%clk 0:02:32]}  Bxc5 {[%clk 0:02:32]} 10. O-O {[%clk 0:02:33]}  Nc6 {[%clk 0:02:21]} 11. Bg5 {[%clk 0:02:31]}  Be7 {[%clk 0:02:21]} 12. Qe2 {[%clk 0:02:28]}  e5 {[%clk 0:02:21]} 13. Rfd1 {[%clk 0:02:24]}  Qa5 {[%clk 0:02:06]} 14. Bxf6 {[%clk 0:02:17]}  Bxf6 {[%clk 0:02:04]} 15. Nd5 {[%clk 0:02:17]}  Bg4 {[%clk 0:01:47]} 16. Nxf6+ {[%clk 0:01:54]}  gxf6 {[%clk 0:01:47]} 17. Qe3 {[%clk 0:01:50]}  Bxf3 {[%clk 0:01:45]} 18. Qxf3 {[%clk 0:01:49]}  Ke7 {[%clk 0:01:45]} 19. Bc4 {[%clk 0:01:45]}  Nd4 {[%clk 0:01:38]} 20. Qh5 {[%clk 0:01:35]}  Rhf8 {[%clk 0:01:03]} 21. Rxd4 {[%clk 0:01:33]}  Qc7 {[%clk 0:00:37]} 22. Rdd1 {[%clk 0:01:08]}  Qxc4 {[%clk 0:00:34]} 23. Rac1 {[%clk 0:01:08]}  Qxe4 {[%clk 0:00:17]} 24. Rc7+ {[%clk 0:01:01]}  Ke6 {[%clk 0:00:16]} 25. Qh3+ {[%clk 0:00:56]}  Qf5 {[%clk 0:00:15]} 26. Qb3# {[%clk 0:00:55]} 1-0


[Site "https://www.chess.com"]

[Event "Titled Tuesday Blitz July 18 Early 2023"]
[White "Dubreuil, Julien"]
[Black "Novikov, Evgenij"]
[WhiteFideId "621285"]
[BlackFideId "4125380"]
[WhiteElo "2343"]
[BlackElo "2509"]
[Result "1/2-1/2"]
[Round "4"]
[TimeControl "180+2"]
[Date "2023.07.18"]
[WhiteClock "0:00:16"]
[BlackClock "0:00:05"]
[Board "140"]

1. c4 {[%clk 0:03:00]}  e5 {[%clk 0:02:58]} 2. g3 {[%clk 0:03:00]}  g6 {[%clk 0:02:56]} 3. Bg2 {[%clk 0:03:00]}  Bg7 {[%clk 0:02:56]} 4. Nc3 {[%clk 0:03:00]}  Ne7 {[%clk 0:02:56]} 5. e4 {[%clk 0:03:00]}  O-O {[%clk 0:02:55]} 6. Nge2 {[%clk 0:03:00]}  Nbc6 {[%clk 0:02:53]} 7. d3 {[%clk 0:03:00]}  Nd4 {[%clk 0:02:53]} 8. h4 {[%clk 0:02:58]}  h5 {[%clk 0:02:51]} 9. Nxd4 {[%clk 0:02:55]}  exd4 {[%clk 0:02:52]} 10. Ne2 {[%clk 0:02:55]}  c6 {[%clk 0:02:51]} 11. Nf4 {[%clk 0:02:55]}  d5 {[%clk 0:02:50]} 12. exd5 {[%clk 0:02:52]}  cxd5 {[%clk 0:02:50]} 13. Nxd5 {[%clk 0:02:51]}  Nxd5 {[%clk 0:02:49]} 14. Bxd5 {[%clk 0:02:51]}  Bg4 {[%clk 0:02:00]} 15. Bf3 {[%clk 0:02:44]}  Qa5+ {[%clk 0:01:42]} 16. Kf1 {[%clk 0:02:34]}  b5 {[%clk 0:01:29]} 17. Bxg4 {[%clk 0:02:23]}  hxg4 {[%clk 0:01:30]} 18. Bd2 {[%clk 0:02:13]}  Qb6 {[%clk 0:01:24]} 19. cxb5 {[%clk 0:01:56]}  Qxb5 {[%clk 0:01:22]} 20. b4 {[%clk 0:01:56]}  Qxd3+ {[%clk 0:01:20]} 21. Kg1 {[%clk 0:01:53]}  Rfe8 {[%clk 0:01:13]} 22. Bf4 {[%clk 0:01:52]}  Qf5 {[%clk 0:01:04]} 23. Kh2 {[%clk 0:01:44]}  a5 {[%clk 0:01:03]} 24. bxa5 {[%clk 0:01:35]}  Rxa5 {[%clk 0:01:04]} 25. Re1 {[%clk 0:01:34]}  Rea8 {[%clk 0:01:03]} 26. a4 {[%clk 0:01:33]}  d3 {[%clk 0:00:55]} 27. Ra3 {[%clk 0:01:30]}  Rd5 {[%clk 0:00:44]} 28. Re3 {[%clk 0:01:25]}  Rad8 {[%clk 0:00:38]} 29. a5 {[%clk 0:01:24]}  Rxa5 {[%clk 0:00:22]} 30. Rxa5 {[%clk 0:01:23]}  Qxa5 {[%clk 0:00:23]} 31. Rxd3 {[%clk 0:01:23]}  Re8 {[%clk 0:00:22]} 32. Re3 {[%clk 0:01:19]}  Rxe3 {[%clk 0:00:20]} 33. Bxe3 {[%clk 0:01:19]}  Qf5 {[%clk 0:00:21]} 34. Qd8+ {[%clk 0:01:17]}  Kh7 {[%clk 0:00:20]} 35. Qa8 {[%clk 0:01:10]}  Bf6 {[%clk 0:00:19]} 36. Qb7 {[%clk 0:01:09]}  Be5 {[%clk 0:00:19]} 37. Kg1 {[%clk 0:00:59]}  Qf6 {[%clk 0:00:18]} 38. Qd5 {[%clk 0:00:58]}  Kg7 {[%clk 0:00:17]} 39. Qe4 {[%clk 0:00:51]}  Qf5 {[%clk 0:00:15]} 40. Qd5 {[%clk 0:00:51]}  Bf6 {[%clk 0:00:14]} 41. Qb7 {[%clk 0:00:44]}  Be5 {[%clk 0:00:12]} 42. Qa8 {[%clk 0:00:40]}  Qf3 {[%clk 0:00:11]} 43. Qxf3 {[%clk 0:00:19]}  gxf3 {[%clk 0:00:12]} 44. g4 {[%clk 0:00:19]}  Kf6 {[%clk 0:00:12]} 45. Kf1 {[%clk 0:00:18]}  Ke6 {[%clk 0:00:09]} 46. Ke1 {[%clk 0:00:18]}  Kd5 {[%clk 0:00:09]} 47. Kd2 {[%clk 0:00:18]}  Ke4 {[%clk 0:00:09]} 48. Bh6 {[%clk 0:00:17]}  Bd4 {[%clk 0:00:09]} 49. Ke1 {[%clk 0:00:16]}  f5 {[%clk 0:00:08]} 50. gxf5 {[%clk 0:00:16]}  Kxf5 {[%clk 0:00:08]} 51. Bg5 {[%clk 0:00:16]}  Kg4 {[%clk 0:00:08]} 52. Kf1 {[%clk 0:00:16]}  Kh3 {[%clk 0:00:07]} 53. Be7 {[%clk 0:00:17]}  Be5 {[%clk 0:00:07]} 54. Bd8 {[%clk 0:00:16]}  Bf4 {[%clk 0:00:06]} 55. Be7 {[%clk 0:00:16]}  Kg4 {[%clk 0:00:07]} 56. Bd8 {[%clk 0:00:16]}  Be5 {[%clk 0:00:06]} 57. Be7 {[%clk 0:00:16]}  Bf4 {[%clk 0:00:06]} 58. Bd8 {[%clk 0:00:16]}  Bh6 {[%clk 0:00:05]} 59. Be7 {[%clk 0:00:16]}  Bf4 {[%clk 0:00:05]} 1/2-1/2


[Site "https://www.chess.com"]

[Event "Titled Tuesday Blitz July 18 Early 2023"]
[White "LeoLV10"]
[Black "Buscar, Michael"]
[BlackFideId "2603616"]
[WhiteElo "2504"]
[BlackElo "2333"]
[Result "1-0"]
[Round "4"]
[TimeControl "180+2"]
[Date "2023.07.18"]
[WhiteClock "0:00:11"]
[BlackClock "0:00:06"]
[Board "144"]

1. e4 {[%clk 0:03:00]}  c5 {[%clk 0:02:57]} 2. Nf3 {[%clk 0:03:00]}  Nc6 {[%clk 0:02:57]} 3. d4 {[%clk 0:03:01]}  cxd4 {[%clk 0:02:58]} 4. Nxd4 {[%clk 0:03:02]}  Nf6 {[%clk 0:02:58]} 5. Nc3 {[%clk 0:03:02]}  e5 {[%clk 0:02:59]} 6. Ndb5 {[%clk 0:03:03]}  h6 {[%clk 0:03:00]} 7. Nd6+ {[%clk 0:02:54]}  Bxd6 {[%clk 0:02:59]} 8. Qxd6 {[%clk 0:02:55]}  Qe7 {[%clk 0:03:00]} 9. Qd1 {[%clk 0:02:52]}  O-O {[%clk 0:02:59]} 10. Be2 {[%clk 0:02:51]}  Rd8 {[%clk 0:02:58]} 11. O-O {[%clk 0:02:45]}  Nd4 {[%clk 0:02:57]} 12. Bc4 {[%clk 0:02:42]}  d6 {[%clk 0:02:55]} 13. Be3 {[%clk 0:02:42]}  Be6 {[%clk 0:02:55]} 14. Bd5 {[%clk 0:02:08]}  Nxd5 {[%clk 0:02:47]} 15. exd5 {[%clk 0:02:05]}  Bf5 {[%clk 0:02:44]} 16. Bxd4 {[%clk 0:02:04]}  exd4 {[%clk 0:02:43]} 17. Qxd4 {[%clk 0:02:05]}  Bxc2 {[%clk 0:02:41]} 18. Rfe1 {[%clk 0:02:05]}  Qg5 {[%clk 0:02:40]} 19. Rac1 {[%clk 0:02:03]}  Bf5 {[%clk 0:02:33]} 20. h4 {[%clk 0:01:56]}  Qg6 {[%clk 0:02:28]} 21. Ne2 {[%clk 0:01:47]}  Re8 {[%clk 0:02:19]} 22. Ng3 {[%clk 0:01:45]}  Rxe1+ {[%clk 0:02:07]} 23. Rxe1 {[%clk 0:01:46]}  Kf8 {[%clk 0:01:51]} 24. Qf4 {[%clk 0:01:40]}  Bd7 {[%clk 0:01:47]} 25. Qb4 {[%clk 0:01:31]}  Re8 {[%clk 0:01:38]} 26. Rxe8+ {[%clk 0:01:19]}  Bxe8 {[%clk 0:01:38]} 27. h5 {[%clk 0:01:19]}  Qb1+ {[%clk 0:01:18]} 28. Kh2 {[%clk 0:01:19]}  Qxa2 {[%clk 0:01:17]} 29. Qxd6+ {[%clk 0:01:19]}  Kg8 {[%clk 0:01:17]} 30. Qe5 {[%clk 0:01:11]}  Qa4 {[%clk 0:01:08]} 31. Nf5 {[%clk 0:01:05]}  f6 {[%clk 0:00:58]} 32. Qe6+ {[%clk 0:01:02]}  Bf7 {[%clk 0:00:56]} 33. Ne7+ {[%clk 0:00:42]}  Kf8 {[%clk 0:00:47]} 34. Ng6+ {[%clk 0:00:41]}  Bxg6 {[%clk 0:00:46]} 35. hxg6 {[%clk 0:00:41]}  Qe8 {[%clk 0:00:31]} 36. Qd6+ {[%clk 0:00:35]}  Kg8 {[%clk 0:00:26]} 37. Qg3 {[%clk 0:00:19]}  Kf8 {[%clk 0:00:23]} 38. f4 {[%clk 0:00:16]}  Qb8 {[%clk 0:00:17]} 39. Qa3+ {[%clk 0:00:11]}  Ke8 {[%clk 0:00:14]} 40. Kg3 {[%clk 0:00:12]}  h5 {[%clk 0:00:07]} 41. Qe3+ {[%clk 0:00:12]}  Kf8 {[%clk 0:00:07]} 42. Qe6 {[%clk 0:00:13]}  Qe8 {[%clk 0:00:07]} 43. Qxe8+ {[%clk 0:00:12]}  Kxe8 {[%clk 0:00:07]} 44. f5 {[%clk 0:00:12]}  Ke7 {[%clk 0:00:07]} 45. Kf4 {[%clk 0:00:12]}  Kd6 {[%clk 0:00:08]} 46. Ke4 {[%clk 0:00:13]}  b5 {[%clk 0:00:08]} 47. b4 {[%clk 0:00:12]}  a5 {[%clk 0:00:08]} 48. bxa5 {[%clk 0:00:13]}  b4 {[%clk 0:00:09]} 49. a6 {[%clk 0:00:11]}  b3 {[%clk 0:00:06]} 50. Kd3 {[%clk 0:00:11]} 1-0


[Site "https://www.chess.com"]

[Event "Titled Tuesday Blitz July 18 Early 2023"]
[White "Mmukka"]
[Black "Okike, David"]
[BlackFideId "8500134"]
[WhiteElo "2493"]
[BlackElo "2322"]
[Result "0-1"]
[Round "4"]
[TimeControl "180+2"]
[Date "2023.07.18"]
[WhiteClock "0:00:08"]
[BlackClock "0:00:56"]
[Board "146"]

1. e4 {[%clk 0:03:00]}  c5 {[%clk 0:02:59]} 2. Nf3 {[%clk 0:02:59]}  Nc6 {[%clk 0:02:59]} 3. d4 {[%clk 0:03:00]}  cxd4 {[%clk 0:02:59]} 4. Nxd4 {[%clk 0:03:01]}  Nf6 {[%clk 0:02:59]} 5. Nc3 {[%clk 0:03:01]}  d6 {[%clk 0:02:59]} 6. Bg5 {[%clk 0:03:01]}  a6 {[%clk 0:02:58]} 7. Qd2 {[%clk 0:03:00]}  e6 {[%clk 0:02:57]} 8. O-O-O {[%clk 0:03:00]}  Bd7 {[%clk 0:02:57]} 9. h4 {[%clk 0:02:59]}  Qb6 {[%clk 0:02:56]} 10. Be3 {[%clk 0:02:51]}  Qc7 {[%clk 0:02:54]} 11. Nxc6 {[%clk 0:02:47]}  Bxc6 {[%clk 0:02:54]} 12. f3 {[%clk 0:02:48]}  b5 {[%clk 0:02:53]} 13. Kb1 {[%clk 0:02:35]}  Rb8 {[%clk 0:02:49]} 14. g4 {[%clk 0:02:32]}  b4 {[%clk 0:02:47]} 15. Ne2 {[%clk 0:02:31]}  a5 {[%clk 0:02:48]} 16. Nd4 {[%clk 0:02:30]}  Bd7 {[%clk 0:02:48]} 17. h5 {[%clk 0:02:29]}  h6 {[%clk 0:02:47]} 18. Be2 {[%clk 0:02:20]}  a4 {[%clk 0:02:47]} 19. g5 {[%clk 0:02:07]}  hxg5 {[%clk 0:02:46]} 20. Bxg5 {[%clk 0:02:07]}  Rxh5 {[%clk 0:02:18]} 21. Rxh5 {[%clk 0:01:17]}  Nxh5 {[%clk 0:02:17]} 22. Rh1 {[%clk 0:01:18]}  Ng3 {[%clk 0:02:06]} 23. Rh8 {[%clk 0:01:17]}  Nxe2 {[%clk 0:02:06]} 24. Qxe2 {[%clk 0:01:17]}  Qc5 {[%clk 0:02:05]} 25. Be3 {[%clk 0:01:15]}  Qe5 {[%clk 0:01:49]} 26. Qg2 {[%clk 0:01:08]}  Bb5 {[%clk 0:01:35]} 27. Qh1 {[%clk 0:01:01]}  Rb7 {[%clk 0:01:27]} 28. Rh5 {[%clk 0:00:37]}  f5 {[%clk 0:01:25]} 29. Rh8 {[%clk 0:00:36]}  Kf7 {[%clk 0:01:13]} 30. Qh5+ {[%clk 0:00:33]}  g6 {[%clk 0:01:13]} 31. Qh7+ {[%clk 0:00:25]}  Bg7 {[%clk 0:01:13]} 32. Qg8+ {[%clk 0:00:24]}  Kf6 {[%clk 0:01:13]} 33. Qd8+ {[%clk 0:00:21]}  Kf7 {[%clk 0:01:13]} 34. Qe8+ {[%clk 0:00:20]}  Bxe8 {[%clk 0:01:12]} 35. Rh1 {[%clk 0:00:17]}  a3 {[%clk 0:01:09]} 36. exf5 {[%clk 0:00:14]}  gxf5 {[%clk 0:01:07]} 37. Bf2 {[%clk 0:00:13]}  Qf6 {[%clk 0:01:04]} 38. f4 {[%clk 0:00:12]}  e5 {[%clk 0:01:03]} 39. fxe5 {[%clk 0:00:11]}  dxe5 {[%clk 0:01:03]} 40. Nf3 {[%clk 0:00:11]}  e4 {[%clk 0:01:03]} 41. Bd4 {[%clk 0:00:11]}  Qg6 {[%clk 0:00:59]} 42. Bxg7 {[%clk 0:00:10]}  Qxg7 {[%clk 0:00:59]} 43. Rh7 {[%clk 0:00:05]}  Qxh7 {[%clk 0:00:58]} 44. Ng5+ {[%clk 0:00:05]}  Kg6 {[%clk 0:00:59]} 45. Nxh7 {[%clk 0:00:06]}  Kxh7 {[%clk 0:00:59]} 46. b3 {[%clk 0:00:05]}  Rg7 {[%clk 0:00:57]} 47. c4 {[%clk 0:00:06]}  Rg2 {[%clk 0:00:56]} 48. c5 {[%clk 0:00:05]}  Bc6 {[%clk 0:00:55]} 49. Kc1 {[%clk 0:00:05]}  f4 {[%clk 0:00:55]} 50. Kd1 {[%clk 0:00:05]}  Rxa2 {[%clk 0:00:55]} 51. Ke1 {[%clk 0:00:06]}  Rb2 {[%clk 0:00:55]} 52. Kf1 {[%clk 0:00:07]}  a2 {[%clk 0:00:56]} 53. Ke1 {[%clk 0:00:08]}  a1=Q# {[%clk 0:00:56]} 0-1


[Site "https://www.chess.com"]